lending/lending_fUSD_20250819
["ID","MTS","AMOUNT","RATE_DAILY","PERIOD"]
[380165937,1755589682115,-1584.22,0.00030136,120]
[380165938,1755589682150,-1214.52,0.00030136,120]
[380165939,1755589682184,-1584.22,0.00030136,120]
[380165940,1755589682219,-4852.16,0.00030136,120]
[380165941,1755589682252,-1584.22,0.00030136,120]
[380165942,1755589682285,-1584.22,0.00030136,120]
[380165943,1755589682318,-1584.22,0.00030136,120]
[380165944,1755589682351,-1584.22,0.00030136,120]
[380165945,1755589682386,-1584.22,0.00030136,120]
[380165946,1755589682420,-1196.04,0.00030136,120]
[380165947,1755589682455,-1584.22,0.00030136,120]
[380165948,1755589682492,-1944.65,0.00030136,120]
[380165949,1755589682528,-1584.22,0.00030136,120]
[380165950,1755589682565,-6225.19,0.00030136,120]
[380165951,1755589682599,-1584.24,0.00030136,120]
[380165952,1755589682632,-2807.27,0.00030136,120]
[380165953,1755589682666,-400.0,0.00030136,120]
[380165954,1755589682701,-4591.51,0.00030136,120]
[380165955,1755589682737,-8884.5,0.00030136,120]
[380165956,1755589682773,-400.0,0.00030136,120]
[380165957,1755589682809,-2700.47,0.00030136,120]
[380165958,1755589682843,-4047.15,0.00030136,120]
[380165959,1755589682877,-400.0,0.00030136,120]
[380165960,1755589682913,-400.0,0.00030136,120]
[380165961,1755589682946,-840.76,0.00030136,120]
[380165962,1755589682981,-528.33,0.00030136,120]
[380165963,1755589683017,-2601.27,0.00030136,120]
[380165964,1755589683053,-400.0,0.00030136,120]
[380165965,1755589683090,-400.0,0.00030136,120]
[380165966,1755589683129,-1117.09,0.00030136,120]
[380165967,1755589683171,-676.04,0.00030136,120]
[380165968,1755589683214,-2540.34,0.00030136,120]
[380165969,1755589683258,-400.0,0.00030136,120]
[380165970,1755589683302,-4037.8,0.00030136,120]
[380165971,1755589683340,-400.0,0.00030136,120]
[380165972,1755589683378,-2329.7,0.00030136,120]
[380165973,1755589683416,-799.52,0.00030136,120]
[380165974,1755589683453,-400.0,0.00030136,120]
[380165975,1755589683492,-2540.34,0.00030136,120]
[380165976,1755589683529,-2540.34,0.00030136,120]
[380165977,1755589683567,-7526.83,0.00030136,120]
[380165978,1755589683604,-762.18,0.00030136,120]
[380165979,1755589683643,-2540.34,0.00030136,120]
[380165980,1755589683680,-2540.34,0.00030136,120]
[380165981,1755589683717,-166.26289963,0.00030136,120]
[380165982,1755589683755,-2540.34,0.00030136,120]
[380165983,1755589683792,-2540.34,0.00030136,120]
[380165984,1755589683830,-2540.34,0.00030136,120]
[380165985,1755589683870,-10890.6,0.00030136,120]
[380165986,1755589683908,-400.0,0.00030136,120]
[380165987,1755589683944,-2540.34,0.00030136,120]
[380165988,1755589683980,-2540.34,0.00030136,120]
[380165989,1755589684017,-2583.6,0.00030136,120]
[380165990,1755589684054,-2540.34,0.00030136,120]
[380165991,1755589684091,-2540.34,0.00030136,120]
[380165992,1755589684128,-2540.34,0.00030136,120]
[380165993,1755589684164,-400.0,0.00030136,120]
[380165994,1755589684203,-2540.34,0.00030136,120]
[380165995,1755589684307,-2540.34,0.00030136,120]
[380165996,1755589684411,-11725.91,0.00030136,120]
[380165997,1755589684515,-2540.34,0.00030136,120]
[380165998,1755589684626,-1055.04,0.00030136,120]
[380165999,1755589684731,-2540.34,0.00030136,120]
[380166000,1755589684836,-400.0,0.00030136,120]
[380166001,1755589684949,-2540.34,0.00030136,120]
[380166002,1755589685317,-1414.17,0.00030136,120]
[380166003,1755589685426,-400.0,0.00030136,120]
[380166004,1755589685528,-2540.34,0.00030136,120]
[380166005,1755589685628,-2540.34,0.00030136,120]
[380166006,1755589685733,-2540.34,0.00030136,120]
[380166007,1755589685837,-2540.34,0.00030136,120]
[380166008,1755589685937,-2540.34,0.00030136,120]
[380166009,1755589686045,-553.14,0.00030136,120]
[380166010,1755589686167,-400.0,0.00030136,120]
[380166011,1755589686267,-2540.37924787,0.00030136,120]
[380166012,1755589686366,-963.56,0.00030136,120]
[380166013,1755589686468,-449.71,0.00030136,120]
[380166014,1755589686568,-400.0,0.00030136,120]
[380166015,1755589686670,-830.13,0.00030136,120]
[380166016,1755589686769,-502.9,0.00030136,120]
[380166017,1755589686867,-400.0,0.00030136,120]
[380166018,1755589686961,-710.48,0.00030136,120]
[380166019,1755589687056,-2298.98,0.00030136,120]
[380166020,1755589687160,-415.27924168,0.00030136,120]
[380166021,1755589687264,-3100.99,0.00030136,120]
[380166022,1755589687367,-1434.74,0.00030136,120]
[380166023,1755589687481,-653.98,0.00030136,120]
[380166024,1755589687585,-953.68,0.00030136,120]
[380166025,1755589687685,-400.0,0.00030136,120]
[380166026,1755589687786,-2050.87,0.00030136,120]
[380166027,1755589687889,-9893.66,0.00030136,120]
[380166028,1755589687988,-400.0,0.00030136,120]
[380166029,1755589688099,-2296.5,0.00030136,120]
[380166030,1755589688211,-400.0,0.00030136,120]
[380166031,1755589688305,-400.0,0.00030136,120]
[380166032,1755589688403,-544.29003957,0.00030136,120]
[380166033,1755589688503,-4172.8,0.00030136,120]
[380166034,1755589688590,-457.01,0.00030136,120]
[380166035,1755589688672,-400.0,0.00030136,120]
[380166036,1755589688759,-400.0,0.00030136,120]
[380166037,1755589688841,-400.0,0.00030136,120]
[380166038,1755589688924,-400.0,0.00030136,120]
[380166039,1755589689006,-3755.18,0.00030136,120]
[380166040,1755589689093,-400.0,0.00030136,120]
[380166041,1755589689185,-2986.31,0.00030136,120]
[380166042,1755589689288,-400.0,0.00030136,120]
[380166043,1755589689389,-829.69,0.00030136,120]
[380166044,1755589689487,-400.0,0.00030136,120]
[380166045,1755589689591,-400.0,0.00030136,120]
[380166046,1755589689688,-400.0,0.00030136,120]
[380166047,1755589689777,-1810.14,0.00030136,120]
[380166048,1755589689866,-3612.38,0.00030136,120]
[380166049,1755589689957,-543.61399628,0.00030136,120]
[380166050,1755589690040,-6583.1,0.00030136,120]
[380166051,1755589690121,-10719.02,0.00030136,120]
[380166052,1755589690203,-2423.0,0.00030136,120]
[380166053,1755589690285,-400.0,0.00030136,120]
[380166054,1755589690362,-400.0,0.00030136,120]
[380166055,1755589690446,-1196.23,0.00030136,120]
[380166056,1755589690526,-1472.96,0.00030136,120]
[380166057,1755589690609,-8048.3,0.00030136,120]
[380166058,1755589690690,-2451.64,0.00030136,120]
[380166059,1755589690768,-400.0,0.00030136,120]
[380166060,1755589690849,-8351.78,0.00030136,120]
[380166061,1755589690935,-2584.42,0.00030136,120]
[380166062,1755589691016,-400.0,0.00030136,120]
[380166063,1755589691100,-2403.53,0.00030136,120]
[380166064,1755589691181,-500.0,0.00030136,120]
[380166065,1755589691269,-1980.71,0.00030136,120]
[380166066,1755589691351,-505.18,0.00030136,120]
[380166067,1755589691430,-500.0,0.00030136,120]
[380166068,1755589691512,-500.0,0.00030136,120]
[380166069,1755589691599,-500.0,0.00030136,120]
[380166070,1755589691687,-500.0,0.00030136,120]
[380166071,1755589691773,-500.0,0.00030136,120]
[380166072,1755589691859,-500.0,0.00030136,120]
[380166073,1755589691948,-2636.88,0.00030136,120]
[380166074,1755589692035,-500.0,0.00030136,120]
[380166075,1755589692121,-400.0,0.00030136,120]
[380166076,1755589692210,-400.0,0.00030136,120]
[380166077,1755589692298,-500.0,0.00030136,120]
[380166078,1755589692384,-400.0,0.00030136,120]
[380166079,1755589692472,-400.0,0.00030136,120]
[380166080,1755589692560,-500.0,0.00030136,120]
[380166081,1755589692647,-500.0,0.00030136,120]
[380166082,1755589692732,-500.0,0.00030136,120]
[380166083,1755589692823,-500.0,0.00030136,120]
[380166084,1755589692906,-8774.36,0.00030136,120]
[380166085,1755589692989,-500.0,0.00030136,120]
[380166086,1755589693082,-500.0,0.00030136,120]
[380166087,1755589693169,-1173.24,0.00030136,120]
[380166088,1755589693258,-4441.0,0.00030136,120]
[380166089,1755589693345,-500.0,0.00030136,120]
[380166090,1755589693435,-500.0,0.00030136,120]
[380166091,1755589693522,-500.0,0.00030136,120]
[380166092,1755589693613,-500.0,0.00030136,120]
[380166093,1755589693698,-400.0,0.00030136,120]
[380166094,1755589693782,-805.03,0.00030136,120]
[380166095,1755589693860,-559.50801072,0.00030136,120]
[380166096,1755589693938,-400.0,0.00030136,120]
[380166097,1755589694013,-3669.1,0.00030136,120]
[380166098,1755589694096,-400.0,0.00030136,120]
[380166099,1755589694192,-2493.89,0.00030136,120]
[380166100,1755589694287,-1177.13,0.00030136,120]
[380166101,1755589694376,-400.0,0.00030136,120]
[380166102,1755589694467,-400.0,0.00030136,120]
[380166103,1755589694556,-500.0,0.00030136,120]
[380166104,1755589694648,-400.0,0.00030136,120]
[380166105,1755589694733,-500.0,0.00030136,120]
[380166106,1755589694815,-500.0,0.00030136,120]
[380166107,1755589694898,-500.0,0.00030136,120]
[380166108,1755589694986,-400.0,0.00030136,120]
[380166109,1755589695083,-500.0,0.00030136,120]
[380166110,1755589695226,-500.0,0.00030136,120]
[380166111,1755589695341,-400.0,0.00030136,120]
[380166112,1755589695445,-500.0,0.00030136,120]
[380166113,1755589695541,-400.0,0.00030136,120]
[380166114,1755589695638,-400.0,0.00030136,120]
[380166115,1755589695729,-500.0,0.00030136,120]
[380166116,1755589695820,-400.0,0.00030136,120]
[380166117,1755589696179,-500.0,0.00030136,120]
[380166118,1755589696310,-400.0,0.00030136,120]
[380166119,1755589696409,-500.0,0.00030136,120]
[380166120,1755589696506,-500.0,0.00030136,120]
[380166121,1755589696605,-718.96,0.00030136,120]
[380166122,1755589696702,-400.0,0.00030136,120]
[380166123,1755589696799,-2705.37,0.00030136,120]
[380166124,1755589696892,-500.0,0.00030136,120]
[380166125,1755589696982,-500.0,0.00030136,120]
[380166126,1755589697076,-1637.35,0.00030136,120]
[380166127,1755589697187,-2713.28,0.00030136,120]
[380166128,1755589697296,-1637.35,0.00030136,120]
[380166129,1755589697404,-500.0,0.00030136,120]
[380166130,1755589697517,-3081.06,0.00030136,120]
[380166131,1755589697631,-1637.35,0.00030136,120]
[380166132,1755589697749,-500.0,0.00030136,120]
[380166133,1755589697871,-400.0,0.00030136,120]
[380166134,1755589697969,-1637.35,0.00030136,120]
[380166135,1755589698068,-500.0,0.00030136,120]
[380166136,1755589698171,-1241.01,0.00030136,120]
[380166137,1755589698272,-1637.35,0.00030136,120]
[380166138,1755589698374,-500.0,0.00030136,120]
[380166139,1755589698475,-1637.35,0.00030136,120]
[380166140,1755589698573,-500.0,0.00030136,120]
[380166141,1755589698673,-1637.35,0.00030136,120]
[380166142,1755589698774,-1832.84,0.00030136,120]
[380166143,1755589698873,-500.0,0.00030136,120]
[380166144,1755589698969,-2545.64,0.00030136,120]
[380166145,1755589699063,-1637.35,0.00030136,120]
[380166146,1755589699154,-500.0,0.00030136,120]
[380166147,1755589699251,-1637.35,0.00030136,120]
[380166148,1755589699343,-519.31204558,0.00030136,120]
[380166149,1755589699436,-1637.35,0.00030136,120]
[380166150,1755589699528,-1637.35,0.00030136,120]
[380166151,1755589699623,-1637.35,0.00030136,120]
[380166152,1755589699713,-400.0,0.00030136,120]
[380166153,1755589699803,-400.0,0.00030136,120]
[380166154,1755589699887,-1637.35,0.00030136,120]
[380166155,1755589699965,-1637.35,0.00030136,120]
[380166156,1755589700043,-400.0,0.00030136,120]
[380166157,1755589700123,-1637.35,0.00030136,120]
[380166158,1755589700206,-1637.35,0.00030136,120]
[380166159,1755589700291,-1637.35,0.00030136,120]
[380166160,1755589700368,-2425.65,0.00030136,120]
[380166161,1755589700445,-1637.35,0.00030136,120]
[380166162,1755589700524,-3513.4,0.00030136,120]
[380166163,1755589700602,-2741.44,0.00030136,120]
[380166164,1755589700678,-1637.35,0.00030136,120]
[380166165,1755589700757,-1637.35,0.00030136,120]
[380166166,1755589700834,-400.0,0.00030136,120]
[380166167,1755589700907,-1637.35,0.00030136,120]
[380166168,1755589700979,-502.95,0.00030136,120]
[380166169,1755589701055,-1637.35,0.00030136,120]
[380166170,1755589701136,-1637.35,0.00030136,120]
[380166171,1755589701214,-1637.53323512,0.00030136,120]
[380166172,1755589701293,-811.39,0.00030136,120]
[380166173,1755589701371,-534.59,0.00030136,120]
[380166174,1755589701449,-400.0,0.00030136,120]
[380166175,1755589701525,-401.59215898,0.00030136,120]
[380166176,1755589701603,-447.44,0.00030136,120]
[380166177,1755589701680,-797.13,0.00030136,120]
[380166178,1755589701758,-400.0,0.00030136,120]
[380166179,1755589701835,-2074.3,0.00030136,120]
[380166180,1755589701910,-400.0,0.00030136,120]
[380166181,1755589701987,-858.59,0.00030136,120]
[380166182,1755589702062,-1050.9,0.00030136,120]
[380166183,1755589702137,-1269.25,0.00030136,120]
[380166184,1755589702212,-2234.31,0.00030136,120]
[380166185,1755589702290,-4265.41,0.00030136,120]
[380166186,1755589702369,-400.0,0.00030136,120]
[380166187,1755589702457,-875.12,0.00030136,120]
[380166188,1755589702546,-411.11,0.00030136,120]
[380166189,1755589702633,-400.0,0.00030136,120]
[380166190,1755589702716,-400.0,0.00030136,120]
[380166191,1755589702803,-400.0,0.00030136,120]
[380166192,1755589702894,-400.0,0.00030136,120]
[380166193,1755589702977,-2135.7,0.00030136,120]
[380166194,1755589703066,-2261.8,0.00030136,120]
[380166195,1755589703163,-2684.99,0.00030136,120]
[380166196,1755589703261,-400.0,0.00030136,120]
[380166197,1755589703354,-1009.93,0.00030136,120]
[380166198,1755589703451,-826.82,0.00030136,120]
[380166199,1755589703542,-1871.27,0.00030136,120]
[380166200,1755589703635,-400.0,0.00030136,120]
[380166201,1755589703735,-704.48,0.00030136,120]
[380166202,1755589703827,-704.48,0.00030136,120]
[380166203,1755589703916,-400.0,0.00030136,120]
[380166204,1755589704002,-704.48,0.00030136,120]
[380166205,1755589704084,-5518.17,0.00030136,120]
[380166206,1755589704168,-400.0,0.00030136,120]
[380166207,1755589704254,-704.48,0.00030136,120]
[380166208,1755589704346,-704.48,0.00030136,120]
[380166209,1755589704453,-704.48,0.00030136,120]
[380166210,1755589704546,-704.48,0.00030136,120]
[380166211,1755589704639,-704.48,0.00030136,120]
[380166212,1755589704729,-704.48,0.00030136,120]
[380166213,1755589704814,-704.48,0.00030136,120]
[380166214,1755589704901,-22134.72,0.00030136,120]
[380166215,1755589704982,-704.48,0.00030136,120]
[380166216,1755589705068,-1190.93,0.00030136,120]
[380166217,1755589705159,-704.48,0.00030136,120]
[380166218,1755589705251,-400.0,0.00030136,120]
[380166219,1755589705338,-704.48,0.00030136,120]
[380166220,1755589705427,-402.9461437,0.00030136,120]
[380166221,1755589705516,-6869.58,0.00030136,120]
[380166222,1755589705606,-1334.05,0.00030136,120]
[380166223,1755589705696,-704.48,0.00030136,120]
[380166224,1755589705783,-704.48,0.00030136,120]
[380166225,1755589705867,-704.48,0.00030136,120]
[380166226,1755589705948,-704.48,0.00030136,120]
[380166227,1755589706030,-2100.26,0.00030136,120]
[380166228,1755589706111,-413.87,0.00030136,120]
[380166229,1755589706198,-704.48,0.00030136,120]
[380166230,1755589706290,-400.0,0.00030136,120]
[380166231,1755589706377,-704.48,0.00030136,120]
[380166232,1755589706466,-704.48,0.00030136,120]
[380166233,1755589706863,-704.48,0.00030136,120]
[380166234,1755589706948,-704.48,0.00030136,120]
[380166235,1755589707031,-400.0,0.00030136,120]
[380166236,1755589707120,-704.48,0.00030136,120]
[380166237,1755589707216,-400.0,0.00030136,120]
[380166238,1755589707305,-1283.33,0.00030136,120]
[380166239,1755589707393,-704.63151108,0.00030136,120]
[380166240,1755589707484,-3834.91,0.00030136,120]
[380166241,1755589707582,-926.7,0.00030136,120]
[380166242,1755589707670,-3261.75,0.00030136,120]
[380166243,1755589707754,-400.0,0.00030136,120]
[380166244,1755589707836,-547.17001156,0.00030136,120]
[380166245,1755589707916,-400.0,0.00030136,120]
[380166246,1755589707997,-12013.33,0.00030136,120]
[380166247,1755589708081,-1741.11,0.00030136,120]
[380166248,1755589708162,-730.82,0.00030136,120]
[380166249,1755589708243,-434.16,0.00030136,120]
[380166250,1755589708322,-3884.34,0.00030136,120]
[380166251,1755589708404,-3597.23,0.00030136,120]
[380166252,1755589708494,-1331.34,0.00030136,120]
[380166253,1755589708579,-400.0,0.00030136,120]
[380166254,1755589708664,-1599.91,0.00030136,120]
[380166255,1755589708747,-1280.63,0.00030136,120]
[380166256,1755589708835,-1996.58,0.00030136,120]
[380166257,1755589708917,-400.0,0.00030136,120]
[380166258,1755589708999,-400.0,0.00030136,120]
[380166259,1755589709093,-400.0,0.00030136,120]
[380166260,1755589709182,-841.33,0.00030136,120]
[380166261,1755589709272,-4183.27,0.00030136,120]
[380166262,1755589709363,-465.58,0.00030136,120]
[380166263,1755589709460,-400.0,0.00030136,120]
[380166264,1755589709552,-3084.1,0.00030136,120]
[380166265,1755589709638,-2457.44,0.00030136,120]
[380166266,1755589709729,-503.12419847,0.00030136,120]
[380166267,1755589709816,-2241.5,0.00030136,120]
[380166268,1755589709907,-9834.66,0.00030136,120]
[380166269,1755589709994,-1574.47,0.00030136,120]
[380166270,1755589710094,-3219.38,0.00030136,120]
[380166271,1755589710197,-400.0,0.00030136,120]
[380166272,1755589710290,-814.65,0.00030136,120]
[380166273,1755589710406,-401.54,0.00030136,120]
[380166274,1755589710499,-551.78670443,0.00030136,120]
[380166275,1755589710592,-400.0,0.00030136,120]
[380166276,1755589710690,-400.0,0.00030136,120]
[380166277,1755589710782,-3331.34,0.00030136,120]
[380166278,1755589710872,-400.0,0.00030136,120]
[380166279,1755589710961,-1196.29,0.00030136,120]
[380166280,1755589711048,-1568.21,0.00030136,120]
[380166281,1755589711140,-400.0,0.00030136,120]
[380166282,1755589711235,-3241.94,0.00030136,120]
[380166283,1755589711326,-642.33,0.00030136,120]
[380166284,1755589711430,-6169.81,0.00030136,120]
[380166285,1755589711523,-549.18545992,0.00030136,120]
[380166286,1755589711615,-2353.12,0.00030136,120]
[380166287,1755589711705,-400.0,0.00030136,120]
[380166288,1755589711801,-400.0,0.00030136,120]
[380166289,1755589711891,-517.57,0.00030136,120]
[380166290,1755589711979,-19171.51,0.00030136,120]
[380166291,1755589712066,-3973.74,0.00030136,120]
[380166292,1755589712156,-1904.0,0.00030136,120]
[380166293,1755589712241,-1428.37,0.00030136,120]
[380166294,1755589712330,-1294.52,0.00030136,120]
[380166295,1755589712424,-2625.4,0.00030136,120]
[380166296,1755589712518,-803.24,0.00030136,120]
[380166297,1755589714761,617.41,0.00030136,120]
[380166298,1755589715094,2472.66,0.00030136,120]
[380166299,1755589716520,566.04,0.00030136,120]
[380166300,1755589716854,400.0,0.00030136,120]
[380166301,1755589717622,3264.05,0.00030136,120]
[380166302,1755589718184,400.0,0.00030136,120]
[380166303,1755589718638,15856.12,0.00030136,120]
[380166304,1755589719596,400.0,0.00030136,120]
[380166305,1755589719761,400.0,0.00030136,120]
[380166306,1755589720115,459.91,0.00030136,120]
[380166307,1755589720285,400.0,0.00030136,120]
[380166308,1755589720415,503.67,0.00030136,120]
[380166309,1755589720626,400.0,0.00030136,120]
[380166310,1755589720724,400.0,0.00030136,120]
[380166311,1755589721030,500.0,0.00030136,120]
[380166312,1755589721253,500.0,0.00030136,120]
[380166313,1755589721598,2506.94,0.00030136,120]
[380166314,1755589721777,500.0,0.00030136,120]
[380166315,1755589721976,500.0,0.00030136,120]
[380166316,1755589722096,500.0,0.00030136,120]
[380166317,1755589722616,500.0,0.00030136,120]
[380166318,1755589722980,500.0,0.00030136,120]
[380166319,1755589723108,400.0,0.00030136,120]
[380166320,1755589723210,2819.63,0.00030136,120]
[380166321,1755589723354,500.0,0.00030136,120]
[380166322,1755589723572,500.0,0.00030136,120]
[380166323,1755589723697,500.0,0.00030136,120]
[380166324,1755589723822,500.0,0.00030136,120]
[380166325,1755589723969,400.0,0.00030136,120]
[380166326,1755589724054,400.0,0.00030136,120]
[380166327,1755589724319,500.0,0.00030136,120]
[380166328,1755589725564,500.0,0.00030136,120]
[380166329,1755589726285,500.0,0.00030136,120]
[380166330,1755589726408,500.0,0.00030136,120]
[380166331,1755589726510,500.0,0.00030136,120]
[380166332,1755589726677,500.0,0.00030136,120]
[380166333,1755589726847,501.54359293,0.00030136,120]
[380166334,1755589726973,1864.47,0.00030136,120]
[380166335,1755589727428,400.0,0.00030136,120]
[380166336,1755589728091,905.79,0.00030136,120]
[380166337,1755589730475,400.0,0.00030136,120]
[380166338,1755589732077,400.0,0.00030136,120]
[380166339,1755589732863,400.0,0.00030136,120]
[380166340,1755589733195,400.0,0.00030136,120]
[380166341,1755589733508,1034.58,0.00030136,120]
[380166342,1755589734223,400.0,0.00030136,120]
[380166343,1755589734391,400.0,0.00030136,120]
[380166344,1755589734745,400.0,0.00030136,120]
[380166345,1755589734852,970.5,0.00030136,120]
[380166346,1755589737983,400.0,0.00030136,120]
[380166347,1755589738400,5558.04,0.00030136,120]
[380166348,1755589739331,2075.26,0.00030136,120]
[380166349,1755589739927,400.0,0.00030136,120]
[380166350,1755589740522,400.0,0.00030136,120]
[380166351,1755589740626,3554.4,0.00030136,120]
[380166352,1755589740708,2466.07,0.00030136,120]
[380166353,1755589741238,423.99021908,0.00030136,120]
[380166354,1755589741647,4145.06,0.00030136,120]
[380166355,1755589742070,400.0,0.00030136,120]
[380166356,1755589742147,794.08,0.00030136,120]
[380166357,1755589742413,2325.15,0.00030136,120]
[380166358,1755589742526,1231.44,0.00030136,120]
[380166359,1755589742670,400.0,0.00030136,120]
[380166360,1755589743438,2347.91,0.00030136,120]
[380166361,1755589744349,6565.7,0.00030136,120]
[380166362,1755589744611,1568.22,0.00030136,120]
[380166363,1755589744807,874.28,0.00030136,120]
[380166364,1755589745167,400.0,0.00030136,120]
[380166365,1755589745435,570.71,0.00030136,120]
[380166366,1755589745548,400.0,0.00030136,120]
[380166367,1755589745846,500.0,0.00030136,120]
[380166368,1755589746119,500.0,0.00030136,120]
[380166369,1755589746243,500.0,0.00030136,120]
[380166370,1755589746456,500.0,0.00030136,120]
[380166371,1755589746768,500.0,0.00030136,120]
[380166372,1755589747092,500.0,0.00030136,120]
[380166373,1755589747184,400.0,0.00030136,120]
[380166374,1755589748686,500.0,0.00030136,120]
[380166375,1755589748833,500.0,0.00030136,120]
[380166376,1755589749151,500.0,0.00030136,120]
[380166377,1755589749382,400.0,0.00030136,120]
[380166378,1755589749486,387.05284319,0.00030136,120]
[380166379,1755589750553,400.0,0.00030136,120]
[380166380,1755589750818,400.0,0.00030136,120]
[380166381,1755589751008,567.51,0.00030136,120]
[380166382,1755589752553,400.0,0.00030136,120]
[380166383,1755589753634,3006.96,0.00030136,120]
[380166384,1755589754393,3207.07,0.00030136,120]
[380166385,1755589754515,3207.07,0.00030136,120]
[380166386,1755589754735,3207.07,0.00030136,120]
[380166387,1755589755041,3207.07,0.00030136,120]
[380166388,1755589755308,3207.07,0.00030136,120]
[380166389,1755589755413,400.0,0.00030136,120]
[380166390,1755589755899,3207.07,0.00030136,120]
[380166391,1755589756248,3207.07,0.00030136,120]
[380166392,1755589756381,3207.07,0.00030136,120]
[380166393,1755589756525,766.13,0.00030136,120]
[380166394,1755589756624,3207.07,0.00030136,120]
[380166395,1755589757078,583.31,0.00030136,120]
[380166396,1755589757197,3207.07,0.00030136,120]
[380166397,1755589757302,3207.07,0.00030136,120]
[380166398,1755589757399,400.0,0.00030136,120]
[380166399,1755589757512,3207.07,0.00030136,120]
[380166400,1755589757895,3207.07,0.00030136,120]
[380166401,1755589758042,400.0,0.00030136,120]
[380166402,1755589758244,3207.07,0.00030136,120]
[380166403,1755589758524,3207.07,0.00030136,120]
[380166404,1755589759737,3207.07,0.00030136,120]
[380166405,1755589759981,3207.07,0.00030136,120]
[380166406,1755589760178,3207.07,0.00030136,120]
[380166407,1755589760632,888.78,0.00030136,120]
[380166408,1755589760732,3207.07,0.00030136,120]
[380166409,1755589760996,3207.07,0.00030136,120]
[380166410,1755589761116,3207.07,0.00030136,120]
[380166411,1755589761429,3207.07,0.00030136,120]
[380166412,1755589761649,3207.07,0.00030136,120]
[380166413,1755589761822,410.42222384,0.00030136,120]
[380166414,1755589761937,3207.24619602,0.00030136,120]
[380166415,1755589762257,2729.94,0.00030136,120]
[380166416,1755589762968,400.0,0.00030136,120]
[380166417,1755589763059,400.0,0.00030136,120]
[380166418,1755589763464,400.0,0.00030136,120]
[380166419,1755589763579,400.0,0.00030136,120]
[380166420,1755589763847,400.0,0.00030136,120]
[380166421,1755589764293,400.0,0.00030136,120]
[380166422,1755589765352,665.06,0.00030136,120]
[380166423,1755589765559,931.01,0.00030136,120]
[380166424,1755589765914,2423.76,0.00030136,120]
[380166425,1755589766155,400.0,0.00030136,120]
[380166426,1755589766760,2623.92,0.00030136,120]
[380166427,1755589767336,3069.18,0.00030136,120]
[380166428,1755589768059,400.0,0.00030136,120]
[380166429,1755589768334,584.07,0.00030136,120]
[380166430,1755589770859,1100.48,0.00030136,120]
[380166431,1755589771337,589.69,0.00030136,120]
[380166432,1755589772198,4702.22,0.00030136,120]
[380166433,1755589772891,1306.23,0.00030136,120]
[380166434,1755589773673,400.0,0.00030136,120]
[380166435,1755589773761,400.0,0.00030136,120]
[380166436,1755589773873,400.0,0.00030136,120]